fUST/lending_fUST_20240723
["ID","MTS","AMOUNT","RATE_DAILY","PERIOD"]
[332920353,1721679069796,-1023.91155908,0.00017389,2]
[332920354,1721679069805,-519.01388481,0.00017403,2]
[332920355,1721679069815,-778.8042113,0.00017403,2]
[332920356,1721679069826,-778.8042113,0.00017403,2]
[332920357,1721679069835,-154.71377951,0.00017403,2]
[332920358,1721679069846,-941.58882029,0.00017403,2]
[332920359,1721679069855,-3359.62228768,0.00017483,2]
[332920360,1721679069865,-1000.0,0.000175,2]
[332920361,1721679069876,-151.0,0.00017516,2]
[332920362,1721679069885,-500.0,0.00017534,2]
[332920363,1721679069894,-950.93,0.00017534,2]
[332920364,1721679069903,-968.56,0.00017534,2]
[332920365,1721679069913,-1012.77,0.00017534,2]
[332920366,1721679069923,-638.65,0.00017534,2]
[332920367,1721679069932,-1943.72,0.00017534,2]
[332920368,1721679069945,-500.0,0.00017534,2]
[332920369,1721679069954,-500.0,0.00017534,2]
[332920370,1721679069964,-500.0,0.00017534,2]
[332920371,1721679069974,-1280.48,0.00017534,2]
[332920372,1721679069985,-500.0,0.00017534,2]
[332920373,1721679069994,-771.21,0.00017534,2]
[332920374,1721679070004,-342.75,0.00017534,2]
[332920375,1721679070015,-500.0,0.00017534,2]
[332920376,1721679070025,-500.0,0.00017534,2]
[332920377,1721679070035,-500.0,0.00017534,2]
[332920378,1721679070046,-500.0,0.00017534,2]
[332920379,1721679070056,-500.0,0.00017534,2]
[332920380,1721679070066,-536.57,0.00017534,2]
[332920381,1721679070076,-855.5,0.00017534,2]
[332920382,1721679070087,-500.0,0.00017534,2]
[332920383,1721679070097,-1320.42,0.00017534,2]
[332920384,1721679070107,-1377.79,0.00017534,2]
[332920385,1721679070117,-500.0,0.00017534,2]
[332920386,1721679070127,-714.04,0.00017534,2]
[332920387,1721679070137,-500.0,0.00017534,2]
[332920388,1721679070148,-2726.26,0.00017534,2]
[332920389,1721679070158,-949.32,0.00017534,2]
[332920390,1721679070167,-672.7,0.00017534,2]
[332920391,1721679070177,-500.0,0.00017534,2]
[332920392,1721679070187,-500.0,0.00017534,2]
[332920393,1721679070198,-500.0,0.00017534,2]
[332920394,1721679070207,-500.0,0.00017534,2]
[332920395,1721679070217,-500.0,0.00017534,2]
[332920396,1721679070226,-630.96,0.00017534,2]
[332920397,1721679070236,-500.0,0.00017534,2]
[332920398,1721679070245,-527.11,0.00017534,2]
[332920399,1721679070255,-500.0,0.00017534,2]
[332920400,1721679070265,-547.77,0.00017534,2]
[332920401,1721679070274,-500.0,0.00017534,2]
[332920402,1721679070284,-500.0,0.00017534,2]
[332920403,1721679070294,-500.0,0.00017534,2]
[332920404,1721679070303,-529.84,0.00017534,2]
[332920405,1721679070313,-163.4,0.00017534,2]
[332920406,1721679070322,-416.9,0.00017534,2]
[332920407,1721679070331,-500.0,0.00017534,2]
[332920408,1721679070340,-533.47,0.00017534,2]
[332920409,1721679070350,-587.87,0.00017534,2]
[332920410,1721679070359,-544.55,0.00017534,2]
[332920411,1721679070370,-500.0,0.00017534,2]
[332920412,1721679070379,-206.6425332,0.00017534,2]
[332920413,1721679070388,-206.1780314,0.00017534,2]
[332920414,1721679070398,-150.0,0.00017546,2]
[332920415,1721679070407,-505.0,0.00017546,2]
[332920416,1721679070417,-196.25173321,0.00017555,2]
[332920417,1721679070426,-248.81385722,0.00017555,2]
[332920418,1721679070436,-166.666666,0.00017592,2]
[332920419,1721679070448,-296.93289548,0.00017598,2]
[332920420,1721679070458,-150.0,0.00017764,2]
[332920421,1721679070471,-5218.39312197,0.00017771,2]
[332920422,1721679070481,-306.83,0.00017808,2]
[332920423,1721679070492,-950.93,0.00017808,2]
[332920424,1721679070502,-151.0,0.00017808,2]
[332920425,1721679070513,-968.56,0.00017808,2]
[332920426,1721679070522,-1012.77,0.00017808,2]
[332920427,1721679070532,-638.65,0.00017808,2]
[332920428,1721679070542,-1943.72,0.00017808,2]
[332920429,1721679070555,-500.0,0.00017808,2]
[332920430,1721679070566,-500.0,0.00017808,2]
[332920431,1721679070577,-500.0,0.00017808,2]
[332920432,1721679070587,-1280.48,0.00017808,2]
[332920433,1721679070597,-500.0,0.00017808,2]
[332920434,1721679070606,-771.21,0.00017808,2]
[332920435,1721679070615,-235.63164326,0.00017808,2]
[332920436,1721679070627,-500.0,0.00017808,2]
[332920437,1721679070638,-500.0,0.00017808,2]
[332920438,1721679070651,-500.0,0.00017808,2]
[332920439,1721679070660,-500.0,0.00017808,2]
[332920440,1721679070671,-536.57,0.00017808,2]
[332920441,1721679070680,-855.5,0.00017808,2]
[332920442,1721679070691,-500.0,0.00017808,2]
[332920443,1721679070701,-1377.79,0.00017808,2]
[332920444,1721679070711,-500.0,0.00017808,2]
[332920445,1721679070720,-714.04,0.00017808,2]
[332920446,1721679070729,-500.0,0.00017808,2]
[332920447,1721679070739,-2726.26,0.00017808,2]
[332920448,1721679070749,-949.32,0.00017808,2]
[332920449,1721679070759,-672.7,0.00017808,2]
[332920450,1721679070768,-500.0,0.00017808,2]
[332920451,1721679070778,-500.0,0.00017808,2]
[332920452,1721679070787,-500.0,0.00017808,2]
[332920453,1721679070797,-471.42,0.00017808,2]
[332920454,1721679070807,-500.0,0.00017808,2]
[332920455,1721679070817,-630.96,0.00017808,2]
[332920456,1721679070828,-500.0,0.00017808,2]
[332920457,1721679070838,-500.0,0.00017808,2]
[332920458,1721679070848,-547.77,0.00017808,2]
[332920459,1721679070857,-500.0,0.00017808,2]
[332920460,1721679070945,-500.0,0.00017808,2]
[332920461,1721679070956,-163.4,0.00017808,2]
[332920462,1721679070968,-416.9,0.00017808,2]
[332920463,1721679070978,-500.0,0.00017808,2]
[332920464,1721679070988,-533.47,0.00017808,2]
[332920465,1721679070997,-587.87,0.00017808,2]
[332920466,1721679071008,-544.55,0.00017808,2]
[332920467,1721679071018,-500.0,0.00017808,2]
[332920468,1721679071028,-941.58882029,0.0001784,2]
[332920469,1721679071039,-154.71377951,0.0001784,2]
[332920470,1721679071049,-4249.03828828,0.0001784,2]
[332920471,1721679071058,-567.94371923,0.0001784,2]
[332920472,1721679071068,-403.29212142,0.0001784,2]
[332920473,1721679071079,-1762.40924644,0.0001784,2]
[332920474,1721679071089,-567.94371923,0.0001784,2]
[332920475,1721679071098,-154.71377951,0.0001784,2]
[332920476,1721679071107,-994.32496375,0.0001784,2]
[332920477,1721679071117,-1762.40924644,0.0001784,2]
[332920478,1721679071126,-154.71377951,0.0001784,2]
[332920479,1721679071136,-600.19386734,0.00017882,2]
[332920480,1721679071145,-531.29167136,0.00017882,2]
[332920481,1721679071155,-154.71377951,0.00017882,2]
[332920482,1721679071164,-805.48179283,0.00017882,2]
[332920483,1721679071174,-663.51231387,0.00017882,2]
[332920484,1721679071183,-154.71377951,0.00017882,2]
[332920485,1721679071195,-240.53771664,0.00017882,2]
[332920486,1721679071204,-805.48179283,0.00017882,2]
[332920487,1721679071214,-156.56045866,0.00017882,2]
[332920488,1721679071223,-154.71377951,0.00017882,2]
[332920489,1721679071232,-166.666666,0.00017977,2]
[332920490,1721679071242,-37309.42207972,0.00018,2]
[332920491,1721679071252,-5000.0,0.00018,12]
[332920492,1721679071261,-154.82195475,0.00018,2]
[332920493,1721679071270,-182.5,0.00018,2]
[332920494,1721679071280,-661.42937649,0.00018,2]
[332920495,1721679071289,-3447.26721564,0.00018,2]
[332920496,1721679071299,-2643.50264414,0.00018,2]
[332920497,1721679071309,-3814.42710833,0.00018,2]
[332920498,1721679071318,-151.0,0.00018,2]
[332920499,1721679071328,-1042.78095966,0.00018,2]
[332920500,1721679071337,-205.38804169,0.00018,2]
[332920501,1721679071347,-151.0,0.00018,2]
[332920502,1721679071356,-1000.0,0.00018,2]
[332920503,1721679071365,-151.0,0.00018,2]
[332920504,1721679071375,-659.88,0.00018055,2]
[332920505,1721679071384,-627.65,0.00018055,2]
[332920506,1721679071394,-173.46,0.00018064,2]
[332920507,1721679071404,-500.0,0.00018064,2]
[332920508,1721679071413,-500.0,0.00018064,2]
[332920509,1721679071422,-284.7,0.00018064,2]
[332920510,1721679071432,-510.64,0.00018071,2]
[332920511,1721679071444,-500.0,0.00018071,2]
[332920512,1721679071453,-479.59,0.00018072,2]
[332920513,1721679071463,-500.0,0.00018072,2]
[332920514,1721679071472,-600.0,0.00018072,2]
[332920515,1721679071486,-539.22,0.00018081,2]
[332920516,1721679071495,-500.0,0.00018081,2]
[332920517,1721679071504,-2184.75,0.00018081,2]
[332920518,1721679071513,-1529.76,0.00018081,2]
[332920519,1721679071523,-598.51,0.00018081,2]
[332920520,1721679071531,-500.0,0.00018081,2]
[332920521,1721679071548,-500.0,0.00018081,2]
[332920522,1721679071567,-500.0,0.00018081,2]
[332920523,1721679071585,-500.0,0.00018081,2]
[332920524,1721679071604,-366.61,0.00018081,2]
[332920525,1721679071623,-500.0,0.00018081,2]
[332920526,1721679071641,-500.0,0.00018081,2]
[332920527,1721679071660,-620.7,0.00018081,2]
[332920528,1721679071674,-500.0,0.00018081,2]
[332920529,1721679071696,-500.0,0.00018081,2]
[332920530,1721679071715,-500.0,0.00018082,2]
[332920531,1721679071731,-500.0,0.00018082,2]
[332920532,1721679071743,-683.88,0.00018082,2]
[332920533,1721679071763,-2306.83,0.00018082,2]
[332920534,1721679071779,-500.0,0.00018082,2]
[332920535,1721679071794,-539.84,0.00018082,2]
[332920536,1721679071807,-2033.74,0.00018082,2]
[332920537,1721679071822,-500.0,0.00018082,2]
[332920538,1721679071837,-500.0,0.00018082,2]
[332920539,1721679071851,-500.0,0.00018082,2]
[332920540,1721679071865,-1177.69,0.00018082,2]
[332920541,1721679071879,-735.43,0.00018082,2]
[332920542,1721679071892,-554.94,0.00018082,2]
[332920543,1721679071907,-500.0,0.00018082,2]
[332920544,1721679071921,-549.02,0.00018082,2]
[332920545,1721679071935,-1031.38,0.00018082,2]
[332920546,1721679071953,-500.0,0.00018082,2]
[332920547,1721679071967,-714.38,0.00018082,2]
[332920548,1721679071982,-505.12,0.00018082,2]
[332920549,1721679071996,-1365.28,0.00018082,2]
[332920550,1721679072011,-647.07,0.00018082,2]
[332920551,1721679072025,-589.48,0.00018082,2]
[332920552,1721679072039,-500.0,0.00018082,2]
[332920553,1721679072053,-768.59,0.00018082,2]
[332920554,1721679072067,-647.55,0.00018082,2]
[332920555,1721679072081,-500.0,0.00018082,2]
[332920556,1721679072095,-953.2,0.00018082,2]
[332920557,1721679072110,-500.0,0.00018082,2]
[332920558,1721679072125,-874.1,0.00018082,2]
[332920559,1721679072139,-519.25,0.00018082,2]
[332920560,1721679072154,-884.66,0.00018082,2]
[332920561,1721679072168,-1057.52,0.00018082,2]
[332920562,1721679072182,-1889.7,0.00018082,2]
[332920563,1721679072198,-500.0,0.00018082,2]
[332920564,1721679072213,-1132.04,0.00018082,2]
[332920565,1721679072227,-666.49,0.00018082,2]
[332920566,1721679072241,-668.28,0.00018082,2]
[332920567,1721679072255,-281.63276384,0.00018082,2]
[332920568,1721679072270,-1624.09,0.00018082,2]
[332920569,1721679072286,-976.27,0.00018082,2]
[332920570,1721679072301,-642.19,0.00018082,2]
[332920571,1721679072316,-552.84,0.00018082,2]
[332920572,1721679072333,-837.86,0.00018082,2]
[332920573,1721679072349,-838.14,0.00018082,2]
[332920574,1721679072364,-2035.58,0.00018082,2]
[332920575,1721679072379,-554.09,0.00018082,2]
[332920576,1721679072395,-500.0,0.00018082,2]
[332920577,1721679072410,-1328.22,0.00018082,2]
[332920578,1721679072424,-500.0,0.00018082,2]
[332920579,1721679072439,-506.13,0.00018082,2]
[332920580,1721679072455,-1470.26,0.00018082,2]
[332920581,1721679072472,-2054.5,0.00018082,2]
[332920582,1721679072488,-628.44,0.00018082,2]
[332920583,1721679072621,-500.0,0.00018082,2]
[332920584,1721679072630,-700.9,0.00018082,2]
[332920585,1721679072641,-630.92,0.00018082,2]
[332920586,1721679072650,-1078.09,0.00018082,2]
[332920587,1721679072661,-816.07,0.00018082,2]
[332920588,1721679072671,-500.0,0.00018082,2]
[332920589,1721679072681,-604.38,0.00018082,2]
[332920590,1721679072692,-627.68,0.00018082,2]
[332920591,1721679072703,-649.28,0.00018082,2]
[332920592,1721679072713,-2006.04,0.00018082,2]
[332920593,1721679072723,-500.0,0.00018082,2]
[332920594,1721679072732,-527.61,0.00018082,2]
[332920595,1721679072741,-500.0,0.00018082,2]
[332920596,1721679072751,-578.61257649,0.00018082,2]
[332920597,1721679072760,-666.18,0.00018082,2]
[332920598,1721679072770,-859.08,0.00018082,2]
[332920599,1721679072779,-3069.31,0.00018082,2]
[332920600,1721679072789,-500.0,0.00018082,2]
[332920601,1721679072799,-1517.82,0.00018082,2]
[332920602,1721679072808,-1176.08,0.00018082,2]
[332920603,1721679072818,-500.0,0.00018082,2]
[332920604,1721679072827,-500.0,0.00018082,2]
[332920605,1721679072837,-500.0,0.00018082,2]
[332920606,1721679072846,-1445.42,0.00018082,2]
[332920607,1721679072855,-500.0,0.00018082,2]
[332920608,1721679072864,-2045.09,0.00018082,2]
[332920609,1721679072874,-771.46,0.00018082,2]
[332920610,1721679072883,-500.0,0.00018082,2]
[332920611,1721679072892,-500.0,0.00018082,2]
[332920612,1721679072902,-930.2,0.00018082,2]
[332920613,1721679072912,-684.13,0.00018082,2]
[332920614,1721679072921,-500.0,0.00018082,2]
[332920615,1721679072931,-687.94,0.00018082,2]
[332920616,1721679072940,-1866.61,0.00018082,2]
[332920617,1721679072950,-1337.16,0.00018082,2]
[332920618,1721679072959,-565.6,0.00018082,2]
[332920619,1721679072968,-561.68,0.00018082,2]
[332920620,1721679072977,-723.1,0.00018082,2]
[332920621,1721679072988,-500.0,0.00018082,2]
[332920622,1721679072998,-1520.82,0.00018082,2]
[332920623,1721679073008,-1951.93,0.00018082,2]
[332920624,1721679073017,-2114.25,0.00018082,2]
[332920625,1721679073027,-500.0,0.00018082,2]
[332920626,1721679073037,-1164.77,0.00018082,2]
[332920627,1721679073048,-1320.34,0.00018082,2]
[332920628,1721679073059,-744.8,0.00018082,2]
[332920629,1721679073069,-1724.01,0.00018082,2]
[332920630,1721679073081,-1333.01,0.00018082,2]
[332920631,1721679073090,-504.86,0.00018082,2]
[332920632,1721679073100,-531.31,0.00018082,2]
[332920633,1721679073111,-2564.77,0.00018082,2]
[332920634,1721679073122,-503.98,0.00018082,2]
[332920635,1721679073132,-1473.72,0.00018082,2]
[332920636,1721679073141,-500.0,0.00018082,2]
[332920637,1721679073152,-579.86,0.00018082,2]
[332920638,1721679073161,-674.71,0.00018082,2]
[332920639,1721679073171,-1005.89,0.00018082,2]
[332920640,1721679073181,-500.0,0.00018082,2]
[332920641,1721679073191,-500.0,0.00018082,2]
[332920642,1721679073201,-1341.62,0.00018082,2]
[332920643,1721679073210,-736.58393209,0.00018082,2]
[332920644,1721679073478,-58.33053134,0.00018082,2]
[332920645,1721679073499,-409.81553657,0.00018082,2]
[332920646,1721679073509,-12941.36,0.00018082,2]
[332920647,1721679073519,-140.82851907,0.00018082,2]
[332920648,1721679073724,-500.0,0.00013698,2]
[332920649,1721679073734,-500.0,0.00013972,2]
[332920650,1721679073744,-500.0,0.00014246,2]
[332920651,1721679073754,-500.0,0.0001452,2]
[332920652,1721679073763,-500.0,0.00014794,2]
[332920653,1721679073773,-500.0,0.00015068,2]
[332920654,1721679073783,-500.0,0.00015342,2]
[332920655,1721679073793,-500.0,0.00015616,2]
[332920656,1721679073803,-431.38518101,0.0001589,2]
[332920657,1721679073814,-1023.91155908,0.00017389,2]
[332920658,1721679073823,-869.00325991,0.00018082,2]
[332920659,1721679073836,-897.34822102,0.00018082,2]
[332920660,1721679073845,-500.0,0.00018082,2]
[332920661,1721679073855,-3041.94,0.00018082,2]
[332920662,1721679073865,-1624.15,0.00018082,2]
[332920663,1721679073875,-1054.8,0.00018082,2]
[332920664,1721679073885,-2090.47,0.00018082,2]
[332920665,1721679073894,-1806.74,0.00018082,2]
[332920666,1721679073904,-2202.13,0.00018082,2]
[332920667,1721679073915,-500.0,0.00018082,2]
[332920668,1721679073925,-4016.4,0.00018082,2]
[332920669,1721679073934,-2213.48,0.00018082,2]
[332920670,1721679073946,-500.0,0.00018082,2]
[332920671,1721679073955,-500.0,0.00018082,2]
[332920672,1721679073965,-500.0,0.00018082,2]
[332920673,1721679073974,-2197.7,0.00018082,2]
[332920674,1721679073984,-1723.55,0.00018082,2]
[332920675,1721679073993,-500.0,0.00018082,2]
[332920676,1721679074003,-5397.5,0.00018082,2]
[332920677,1721679074012,-652.01,0.00018082,2]
[332920678,1721679074023,-1092.54,0.00018082,2]
[332920679,1721679074034,-993.63,0.00018082,2]
[332920680,1721679074043,-917.62,0.00018082,2]
[332920681,1721679074053,-500.0,0.00018082,2]
[332920682,1721679074152,-716.45,0.00018082,2]
[332920683,1721679074168,-4132.02,0.00018082,2]
[332920684,1721679074178,-2222.11,0.00018082,2]
[332920685,1721679074188,-818.39,0.00018082,2]
[332920686,1721679074203,-935.93,0.00018082,2]
[332920687,1721679074215,-7400.98,0.00018082,2]
[332920688,1721679074225,-500.0,0.00018082,2]
[332920689,1721679074235,-930.77,0.00018082,2]
[332920690,1721679074245,-734.72,0.00018082,2]
[332920691,1721679074255,-473.75618283,0.00018082,2]
[332920692,1721679074265,-609.08850831,0.00018082,2]
[332920693,1721679074275,-850.61,0.00018082,2]
[332920694,1721679074284,-552.12,0.00018082,2]
[332920695,1721679074294,-1669.97,0.00018082,2]
[332920696,1721679074304,-930.18,0.00018082,2]
[332920697,1721679074315,-500.0,0.00018082,2]
[332920698,1721679074325,-1082.74,0.00018082,2]
[332920699,1721679074335,-1077.15,0.00018082,2]
[332920700,1721679074345,-2665.28,0.00018082,2]
[332920701,1721679074355,-1492.38,0.00018082,2]
[332920702,1721679074364,-500.0,0.00018082,2]
[332920703,1721679074373,-1378.02,0.00018082,2]
[332920704,1721679074383,-92.23731176,0.00018082,2]
[332920705,1721679074684,-500.0,0.00013698,2]
[332920706,1721679074699,-500.0,0.00013698,2]
[332920707,1721679074708,-500.0,0.00013972,2]
[332920708,1721679074718,-500.0,0.00013972,2]
[332920709,1721679074728,-500.0,0.00014246,2]
[332920710,1721679074738,-500.0,0.00014246,2]
[332920711,1721679074747,-500.0,0.0001452,2]
[332920712,1721679074757,-500.0,0.0001452,2]
[332920713,1721679074766,-500.0,0.00014794,2]
[332920714,1721679074776,-330.35986295,0.00015068,2]
[332920715,1721679074786,-1107.79559828,0.00016309,2]
[332920716,1721679074795,-151.0,0.00016347,2]
[332920717,1721679074805,-206.6425332,0.00016712,2]
[332920718,1721679074815,-1358.72268824,0.00018082,2]
[332920719,1721679074824,-500.0,0.00018082,2]
[332920720,1721679074834,-559.28,0.00018082,2]
[332920721,1721679074844,-776.21,0.00018082,2]
[332920722,1721679074853,-508.21,0.00018082,2]
[332920723,1721679074862,-722.53,0.00018082,2]
[332920724,1721679074872,-1011.22,0.00018082,2]
[332920725,1721679074881,-500.0,0.00018082,2]
[332920726,1721679074891,-80.76251305,0.00018082,2]
[332920727,1721679076978,15189.1986845,0.0001212,2]
[332920729,1721679904741,9869.46,7.25e-05,2]
[332920731,1721679984911,200.0,7.25e-05,2]
[332920732,1721679986432,161.93131789,7.25e-05,2]
[332920733,1721680026121,-250.0,7.921e-05,2]
[332920734,1721680026143,-500.0,8.514e-05,2]
[332920735,1721680026164,-5327.84162568,8.6e-05,2]
[332920736,1721680026185,-824.6091137,8.687e-05,2]
[332920737,1721680026206,-250.0,8.707e-05,2]
[332920738,1721680026228,-250.0,8.731e-05,2]
[332920739,1721680026250,-250.0,8.754e-05,2]
[332920740,1721680026272,-250.0,8.778e-05,2]
[332920741,1721680026292,-155.71996656,8.788e-05,2]
[332920742,1721680026313,-200.0,8.788e-05,2]
[332920743,1721680026335,-250.0,8.802e-05,2]
[332920744,1721680026356,-250.0,8.826e-05,2]
[332920745,1721680026381,-250.0,8.85e-05,2]
[332920746,1721680026403,-250.0,8.874e-05,2]
[332920747,1721680026425,-250.0,8.898e-05,2]
[332920748,1721680026446,-250.0,8.922e-05,2]
[332920749,1721680026469,-250.0,8.946e-05,2]
[332920750,1721680026494,-300.0,8.962e-05,2]
[332920751,1721680026516,-24900.0,8.965e-05,2]
[332920752,1721680026538,-250.0,8.969e-05,2]
[332920753,1721680026560,-250.0,8.993e-05,2]
[332920754,1721680026582,-250.0,9.017e-05,2]
[332920755,1721680026767,-250.0,9.041e-05,2]
[332920756,1721680026792,-250.0,9.065e-05,2]
[332920757,1721680026821,-250.0,9.089e-05,2]
[332920758,1721680026843,-250.0,9.113e-05,2]
[332920759,1721680026864,-250.0,9.137e-05,2]
[332920760,1721680026888,-250.0,9.161e-05,2]
[332920761,1721680026909,-420.0,9.858e-05,2]
[332920762,1721680026931,-521.03547777,9.999e-05,2]
[332920763,1721680026955,-154.79103211,9.999e-05,2]
[332920764,1721680026975,-154.71377951,9.999e-05,2]
[332920765,1721680026999,-204.81638938,9.999e-05,2]
[332920766,1721680027023,-240.53771664,9.999e-05,2]
[332920767,1721680027045,-154.77557542,9.999e-05,2]
[332920768,1721680027068,-248.81385722,9.999e-05,2]
[332920769,1721680027093,-155.37561184,9.999e-05,2]
[332920770,1721680027115,-201.39652507,9.999e-05,2]
[332920771,1721680027135,-154.81963389,9.999e-05,2]
[332920772,1721680027155,-805.48179283,9.999e-05,2]
[332920773,1721680027176,-154.80649189,9.999e-05,2]
[332920774,1721680027196,-266.45562097,9.999e-05,2]
[332920775,1721680027217,-309.06726427,9.999e-05,2]
[332920776,1721680027238,-941.58882029,9.999e-05,2]
[332920777,1721680027261,-387.85475241,9.999e-05,2]
[332920778,1721680027282,-375.60784238,9.999e-05,2]
[332920779,1721680027302,-159.80847068,9.999e-05,2]
[332920780,1721680027322,-154.76012181,9.999e-05,2]
[332920781,1721680027343,-154.72922386,9.999e-05,2]
[332920782,1721680027365,-519.01388481,9.999e-05,2]
[332920783,1721680027385,-182.72422577,9.999e-05,2]
[332920784,1721680027406,-154.71377951,0.0001,2]
[332920785,1721680027426,-204.43824148,0.0001,2]
[332920786,1721680027447,-267.15916393,0.0001,2]
[332920787,1721680027467,-994.32496375,0.0001,2]
[332920788,1721680027488,-587.0,0.00010844,2]
[332920789,1721680027510,-35019.87653418,0.000119,2]
[332920790,1721680040035,3781.68915549,7.25e-05,2]
[332920791,1721680040714,19442.92605809,7.25e-05,2]
[332920792,1721680044001,1437.07697255,7.25e-05,2]
[332920793,1721680047537,3781.68915549,7.25e-05,2]
[332920794,1721680048097,-250.0,7.842e-05,2]
[332920795,1721680048121,-778.8042113,9.999e-05,2]
[332920796,1721680048145,-3512.54495877,0.000119,2]
[332920797,1721680066619,1429.97525308,7.25e-05,2]
[332920806,1721680130868,154.71377951,7.25e-05,2]
[332920807,1721680136718,19442.92605809,7.25e-05,2]
[332920808,1721680146092,-300.0,8.787e-05,2]
[332920809,1721680146113,-300.0,8.787e-05,2]
[332920810,1721680146135,-519.01388481,8.788e-05,2]
[332920811,1721680146156,-941.58882029,8.788e-05,2]
[332920812,1721680146178,-778.8042113,8.788e-05,2]
[332920813,1721680146201,-3781.68915549,8.788e-05,2]
[332920814,1721680146224,-941.58882029,8.788e-05,2]
[332920815,1721680146245,-240.53771664,8.788e-05,2]
[332920816,1721680146265,-339.71759118,8.788e-05,2]
[332920817,1721680149101,-528.89208315,8.788e-05,2]
[332920818,1721680149129,-222.95441041,8.788e-05,2]
[332920819,1721680149153,-420.0,9.665e-05,2]
[332920820,1721680149176,-191.0,9.665e-05,2]
[332920821,1721680149198,-273.37336231,9.9e-05,2]
[332920822,1721680149220,-155.68863242,9.999e-05,2]
[332920823,1721680149241,-375.60784238,9.999e-05,2]
[332920824,1721680149262,-248.81385722,9.999e-05,2]
[332920825,1721680149283,-179.65190867,9.999e-05,2]
[332920826,1721680149304,-519.01388481,9.999e-05,2]
[332920827,1721680149325,-994.32496375,0.0001,2]
[332920828,1721680149348,-154.71377951,0.0001,2]
[332920829,1721680149369,-184.0,0.00010632,2]
[332920830,1721680149390,-1002.61770105,0.00011899,2]
[332920831,1721680149411,-789.84351677,0.0001202,2]
[332920832,1721680149433,-124342.10895368,0.0001211,2]
[332920834,1721680150091,-179.5907303,0.0001211,2]
[332920835,1721680152098,-196.25173321,9.999e-05,2]
[332920836,1721680152120,-22320.93221874,0.0001211,2]
[332920873,1721680238055,-248.81385722,8.788e-05,2]
[332920874,1721680238065,-16151.40665904,8.788e-05,2]
[332920875,1721680238074,-240.47214285,8.788e-05,2]
[332920876,1721680238083,-196.25173321,8.788e-05,2]
[332920877,1721680238092,-3638.40517871,8.788e-05,2]
[332920878,1721680238102,-330.46534911,8.788e-05,2]
[332920879,1721680238111,-519.01388481,8.788e-05,2]
[332920880,1721680238120,-273.37336231,9.9e-05,2]
[332920881,1721680238129,-778.8042113,9.999e-05,2]
[332920882,1721680238139,-663.51231387,9.999e-05,2]
[332920883,1721680238148,-567.94371923,9.999e-05,2]
[332920884,1721680238157,-154.71377951,9.999e-05,2]
[332920885,1721680238167,-209.63850314,9.999e-05,2]
[332920886,1721680238176,-156.56045866,9.999e-05,2]
[332920887,1721680238185,-209.63850314,9.999e-05,2]
[332920888,1721680238194,-403.29212142,9.999e-05,2]
[332920889,1721680238203,-154.71377951,0.0001,2]
[332920890,1721680238213,-994.32496375,0.0001,2]
[332920891,1721680238222,-619.32108,0.0001,2]
[332920892,1721680238231,-43790.77669128,0.0001211,2]
[332920893,1721680238241,-154.71377951,0.0001211,2]
[332920894,1721680238250,-195523.17801329,0.0001212,2]
[332920895,1721680238259,-164.49158165,0.0001212,2]
[332920896,1721680238269,-394.7073879,0.00012539,2]
[332920897,1721680238278,-3359.62228769,0.000129,2]
[332920898,1721680238286,-3359.62228768,0.0001328,2]
[332920899,1721680238295,-789.84351672,0.00013383,2]